[Event "Chinese Championship-B Women 2024"]
[Site "Liaocheng"]
[Date "2024.04.24"]
[Round "5.6"]
[White "Wang, Yi(Bj)"]
[Black "Zhao, Yunqing"]
[Result "1/2-1/2"]
[WhiteElo "1782"]
[BlackElo "1965"]
[PlyCount "107"]
[EventDate "2024.04.24"]
[EventType "swiss"]
[EventCountry "CHN"]
[TimeControl "5400+30"]

1. e4 {[%emt 0:04:01]} c5 {[%emt 0:00:06]} 2. Nf3 {[%emt 0:00:10]} e6 {[%emt 0:00:07]} 3. d4 {[%emt 0:00:03]} cxd4 4. Nxd4 {[%emt 0:00:03]} Nc6 {[%emt 0:00:14]} 5. Nc3 {[%emt 0:00:05]} Qc7 {[%emt 0:00:10]} 6. Ncb5 Qb8 {[%emt 0:06:49]} 7. Bd3 {[%emt 0:00:22]} a6 {[%emt 0:10:07]} 8. Nxc6 {[%emt 0:00:15]} dxc6 {[%emt 0:01:57]} 9. Nc3 {[%emt 0:00:33]} e5 {[%emt 0:04:12]} 10. O-O {[%emt 0:01:30]} Nf6 {[%emt 0:05:16]} 11. Kh1 {[%emt 0:13:15]} Bd6 {[%emt 0:05:57]} 12. Ne2 {[%emt 0:08:09]} Nd7 {[%emt 0:11:10]} 13. c3 {[%emt 0:08:03]} Qc7 {[%emt 0:09:32]} 14. Ng3 {[%emt 0:01:55]} g6 {[%emt 0:04:05]} 15. Bh6 {[%emt 0:01:45]} Nc5 {[%emt 0:05:02]} 16. Bc2 {[%emt 0:00:04]} Ne6 {[%emt 0:03:12]} 17. Qd2 {[%emt 0:04:08]} Bd7 {[%emt 0:03:17]} 18. a4 {[%emt 0:08:19]} Bf8 {[%emt 0:07:06]} 19. Be3 {[%emt 0:01:31]} a5 {[%emt 0:04:35]} 20. Ne2 {[%emt 0:03:00]} Bc5 {[%emt 0:02:24]} 21. f4 {[%emt 0:09:00]} Bxe3 {[%emt 0:04:21]} 22. Qxe3 {[%emt 0:00:01]} exf4 {[%emt 0:01:45]} 23. Nxf4 {[%emt 0:00:05]} Nxf4 {[%emt 0:01:31]} 24. Rxf4 {[%emt 0:00:03]} Qe5 {[%emt 0:01:32]} 25. Raf1 {[%emt 0:00:52]} Be6 {[%emt 0:00:42]} 26. Qb6 {[%emt 0:08:32]} O-O {[%emt 0:02:11]} 27. Qf2 {[%emt 0:03:41]} Rad8 {[%emt 0:01:40]} 28. Qe3 {[%emt 0:11:11]} Rd7 {[%emt 0:01:50]} 29. R4f2 {[%emt 0:01:13]} Rfd8 {[%emt 0:01:26]} 30. Qe1 {[%emt 0:01:06]} Bc4 {[%emt 0:01:15]} 31. Rg1 {[%emt 0:00:17]} b5 {[%emt 0:00:46]} 32. Qe3 {[%emt 0:02:37]} h5 {[%emt 0:01:40]} 33. h4 {[%emt 0:00:30]} bxa4 {[%emt 0:00:23]} 34. Bxa4 {[%emt 0:00:14]} Rd3 {[%emt 0:00:19]} 35. Qf4 {[%emt 0:00:25]} Qxf4 {[%emt 0:00:49]} 36. Rxf4 {[%emt 0:00:01]} Rd2 {[%emt 0:00:29]} 37. b3 {[%emt 0:00:46]} Be6 {[%emt 0:00:16]} 38. b4 {[%emt 0:02:14]} axb4 {[%emt 0:00:41]} 39. cxb4 {[%emt 0:00:04]} R8d4 {[%emt 0:00:30]} 40. Bxc6 {[%emt 0:00:33]} Rxb4 {[%emt 0:00:05]} 41. Rff1 {[%emt 0:02:12]} Rbd4 {[%emt 0:00:58]} 42. Kh2 {[%emt 0:01:28]} R4d3 {[%emt 0:00:29]} 43. Kh1 {[%emt 0:01:26]} Rg3 {[%emt 0:00:31]} 44. Rf3 {[%emt 0:01:56]} Rxf3 {[%emt 0:00:29]} 45. gxf3 {[%emt 0:00:02]} Rf2 {[%emt 0:00:29]} 46. e5 {[%emt 0:01:13]} Re2 {[%emt 0:00:29]} 47. Be4 {[%emt 0:00:28]} Kf8 {[%emt 0:00:28]} 48. Rg2 {[%emt 0:01:26]} Re1+ {[%emt 0:00:35]} 49. Kh2 {[%emt 0:00:03]} Rd1 {[%emt 0:00:12]} 50. Kg3 {[%emt 0:00:23]} Bd5 {[%emt 0:00:20]} 51. Re2 {[%emt 0:01:52]} Ke7 {[%emt 0:00:23]} 52. Bxd5 {[%emt 0:00:58]} Rxd5 {[%emt 0:00:05]} 53. Kf4 {[%emt 0:00:02]} Ke6 {[%emt 0:01:08]} 54. Re4 {[%emt 0:00:30]} 1/2-1/2

[Event "Chinese Championship-B Women 2024"]
[Site "Liaocheng"]
[Date "2024.04.24"]
[Round "5.7"]
[White "Mu, Wangxueyao"]
[Black "Guo, Weibao"]
[Result "1/2-1/2"]
[WhiteElo "1738"]
[BlackElo "1954"]
[PlyCount "79"]
[EventDate "2024.04.24"]
[EventType "swiss"]
[EventCountry "CHN"]
[TimeControl "5400+30"]

1. d4 {[%emt 0:00:02]} e6 {[%emt 0:00:13]} 2. c4 {[%emt 0:00:07]} f5 {[%emt 0:01:23]} 3. d5 {[%emt 1:31:51]} Be7 {[%emt 0:06:45]} 4. Nc3 {[%emt 0:00:00]} Nf6 {[%emt 0:01:45]} 5. g3 {[%emt 0:00:00]} O-O {[%emt 0:04:30]} 6. Bg2 {[%emt 0:00:00]} e5 {[%emt 0:01:21]} 7. e3 {[%emt 0:00:00]} a5 {[%emt 0:04:13]} 8. Nge2 {[%emt 0:00:00]} Na6 {[%emt 0:00:56]} 9. O-O {[%emt 0:00:00]} Nc5 {[%emt 0:00:36]} 10. b3 {[%emt 0:00:00]} d6 {[%emt 0:01:04]} 11. a3 {[%emt 0:00:00]} Bd7 {[%emt 0:02:11]} 12. Bb2 {[%emt 0:00:00]} Qe8 {[%emt 0:03:30]} 13. b4 {[%emt 0:00:00]} axb4 {[%emt 0:10:46]} 14. axb4 {[%emt 0:00:00]} Rxa1 {[%emt 0:00:40]} 15. Bxa1 {[%emt 0:00:00]} Nce4 {[%emt 0:02:39]} 16. f3 {[%emt 0:00:00]} Nxc3 {[%emt 0:04:20]} 17. Bxc3 {[%emt 0:00:00]} Qg6 {[%emt 0:01:49]} 18. c5 {[%emt 0:00:00]} Bb5 {[%emt 0:02:31]} 19. f4 {[%emt 0:00:00]} e4 {[%emt 0:03:50]} 20. Re1 {[%emt 0:00:00]} Bxe2 {[%emt 0:03:59]} 21. Rxe2 {[%emt 0:00:00]} dxc5 {[%emt 0:01:00]} 22. Be5 {[%emt 0:00:32]} Qf7 {[%emt 0:13:52]} 23. Rd2 {[%emt 0:06:16]} cxb4 {[%emt 0:00:22]} 24. Bf1 {[%emt 0:01:49]} Bc5 {[%emt 0:06:24]} 25. Qb3 {[%emt 0:01:24]} Ne8 {[%emt 0:00:19]} 26. h3 {[%emt 0:00:56]} Nd6 {[%emt 0:00:23]} 27. Kh2 {[%emt 0:00:30]} Ra8 {[%emt 0:00:30]} 28. Ra2 {[%emt 0:00:29]} Qe8 {[%emt 0:03:19]} 29. g4 {[%emt 0:00:31]} Rxa2+ {[%emt 0:01:36]} 30. Qxa2 {[%emt 0:01:03]} Bxe3 {[%emt 0:00:27]} 31. gxf5 {[%emt 0:00:30]} Bc5 {[%emt 0:05:54]} 32. Qg2 {[%emt 0:00:00]} Qf7 {[%emt 0:00:04]} 33. f6 {[%emt 0:00:15]} g6 {[%emt 0:00:15]} 34. Qa2 {[%emt 0:00:19]} h5 {[%emt 0:01:17]} 35. Qa8+ {[%emt 0:00:16]} Kh7 {[%emt 0:00:12]} 36. Qd8 {[%emt 0:00:34]} b3 {[%emt 0:05:59]} 37. Qe7 {[%emt 0:00:41]} Kg8 {[%emt 0:00:30]} 38. Qd8+ {[%emt 0:00:29]} Kh7 {[%emt 0:02:48]} 39. Qe7 {[%emt 0:00:04]} Kg8 {[%emt 0:02:24]} 40. Qd8+ {[%emt 0:00:03]} 1/2-1/2

[Event "Chinese Championship-B Women 2024"]
[Site "Liaocheng"]
[Date "2024.04.24"]
[Round "5.8"]
[White "Zhao, Chenyu"]
[Black "Zhu, Zile"]
[Result "1-0"]
[WhiteElo "1909"]
[BlackElo "1819"]
[PlyCount "53"]
[EventDate "2024.04.24"]
[EventType "swiss"]
[EventCountry "CHN"]
[TimeControl "5400+30"]

1. e4 {[%emt 0:00:02]} e6 {[%emt 0:03:38]} 2. d4 {[%emt 0:00:06]} d5 {[%emt 0:00:03]} 3. Nd2 {[%emt 0:00:11]} dxe4 4. Nxe4 {[%emt 0:00:04]} Nd7 {[%emt 0:00:11]} 5. Nf3 {[%emt 0:00:22]} Ngf6 {[%emt 0:00:07]} 6. Nxf6+ Nxf6 {[%emt 0:00:05]} 7. Bd3 c5 {[%emt 0:00:22]} 8. O-O {[%emt 0:00:24]} cxd4 {[%emt 0:00:12]} 9. Nxd4 {[%emt 0:01:33]} Bc5 {[%emt 0:00:06]} 10. Nb3 {[%emt 0:02:53]} Bb6 {[%emt 0:00:40]} 11. Qf3 {[%emt 0:05:40]} Qc7 {[%emt 0:21:33]} 12. Bf4 {[%emt 0:01:08]} Qc6 {[%emt 0:01:56]} 13. Qxc6+ {[%emt 0:01:06]} bxc6 {[%emt 0:00:05]} 14. a4 {[%emt 0:08:02]} a5 {[%emt 0:10:54]} 15. Nd2 {[%emt 0:02:46]} Bc5 {[%emt 0:07:22]} 16. Ne4 {[%emt 0:07:11]} Be7 {[%emt 0:51:16]} 17. Nxf6+ {[%emt 0:10:40]} Bxf6 {[%emt 0:00:00]} 18. Be4 {[%emt 0:01:08]} Bd7 {[%emt 0:00:00]} 19. Rfd1 {[%emt 0:02:41]} Rc8 {[%emt 0:00:00]} 20. Ra3 {[%emt 0:27:10]} e5 {[%emt 0:00:00]} 21. Be3 {[%emt 0:02:26]} Be7 {[%emt 0:00:00]} 22. Rb3 {[%emt 0:02:52]} f5 {[%emt 0:00:00]} 23. Rxd7 {[%emt 0:00:37]} Kxd7 {[%emt 0:00:00]} 24. Bxf5+ {[%emt 0:00:05]} Kd6 {[%emt 0:00:00]} 25. Rd3+ {[%emt 0:00:11]} Kc7 {[%emt 0:00:00]} 26. Rd7+ {[%emt 0:00:42]} Kb8 {[%emt 0:00:00]} 27. Rxe7 {[%emt 0:00:07]} 1-0

[Event "Chinese Championship-B Women 2024"]
[Site "Liaocheng"]
[Date "2024.04.24"]
[Round "5.9"]
[White "Shao, Qiyu"]
[Black "Gao, Muziyan"]
[Result "1-0"]
[WhiteElo "1764"]
[BlackElo "1891"]
[PlyCount "99"]
[EventDate "2024.04.24"]
[EventType "swiss"]
[EventCountry "CHN"]
[TimeControl "5400+30"]

1. c4 {[%emt 0:03:39]} e5 {[%emt 0:01:00]} 2. Nc3 {[%emt 1:27:51]} d6 {[%emt 1:30:30]} 3. g3 {[%emt 0:00:00]} Be7 {[%emt 0:00:30]} 4. Nf3 {[%emt 0:01:00]} f5 {[%emt 0:00:30]} 5. b3 {[%emt 0:00:30]} Nf6 {[%emt 0:00:30]} 6. Bb2 {[%emt 0:00:30]} c6 {[%emt 0:00:30]} 7. Bg2 {[%emt 0:00:30]} O-O {[%emt 0:00:30]} 8. O-O {[%emt 0:00:30]} Ne8 {[%emt 0:00:30]} 9. Rc1 {[%emt 0:00:30]} Be6 {[%emt 0:00:30]} 10. c5 {[%emt 0:00:30]} Nd7 {[%emt 0:00:30]} 11. cxd6 {[%emt 0:00:30]} Nxd6 {[%emt 0:00:00]} 12. Qc2 {[%emt 0:00:00]} Re8 {[%emt 0:00:00]} 13. d3 {[%emt 0:00:00]} Bf6 {[%emt 0:00:00]} 14. Rfd1 {[%emt 0:01:30]} Qa5 {[%emt 0:02:00]} 15. Nd2 {[%emt 0:00:00]} Rad8 {[%emt 0:00:00]} 16. Na4 {[%emt 0:00:00]} Nb5 {[%emt 0:00:00]} 17. Nc4 {[%emt 0:00:00]} Qb4 {[%emt 0:00:00]} 18. Nc3 {[%emt 0:00:00]} Nd4 {[%emt 0:00:00]} 19. Qd2 {[%emt 0:00:00]} Bxc4 {[%emt 0:00:00]} 20. bxc4 {[%emt 0:00:00]} Qe7 {[%emt 0:00:00]} 21. Rb1 {[%emt 0:00:00]} Nb6 {[%emt 0:00:00]} 22. e3 {[%emt 0:00:00]} Ne6 {[%emt 0:00:00]} 23. Qc2 {[%emt 0:00:00]} Qf7 {[%emt 0:00:00]} 24. a4 {[%emt 0:00:00]} Nd7 {[%emt 0:00:00]} 25. Ba3 {[%emt 0:00:00]} Ndc5 {[%emt 0:00:10]} 26. Ne2 {[%emt 0:00:00]} Rd7 {[%emt 0:02:46]} 27. Bxc5 {[%emt 0:00:00]} Nxc5 {[%emt 0:00:01]} 28. d4 {[%emt 0:00:00]} exd4 {[%emt 0:00:46]} 29. exd4 {[%emt 0:00:00]} Nxa4 {[%emt 0:01:13]} 30. d5 {[%emt 0:00:00]} Rxe2 {[%emt 0:02:25]} 31. Qxa4 {[%emt 0:00:00]} Qe7 {[%emt 0:00:36]} 32. dxc6 {[%emt 0:00:00]} Qc5 {[%emt 0:00:25]} 33. Rf1 {[%emt 0:00:00]} bxc6 {[%emt 0:01:08]} 34. Bxc6 {[%emt 0:00:00]} Rd8 {[%emt 0:00:30]} 35. Bd5+ {[%emt 0:10:30]} Kh8 {[%emt 0:00:30]} 36. Qb3 {[%emt 0:00:30]} a5 {[%emt 0:00:30]} 37. Qf3 {[%emt 0:00:00]} Re5 {[%emt 0:00:00]} 38. Rb5 {[%emt 0:00:00]} Qa7 {[%emt 0:00:24]} 39. Qa3 {[%emt 0:00:00]} a4 {[%emt 0:00:21]} 40. Rb4 {[%emt 0:00:00]} Be7 {[%emt 0:00:41]} 41. Qxa4 {[%emt 0:00:00]} Qd4 {[%emt 0:00:13]} 42. Rb7 {[%emt 0:03:00]} Bc5 {[%emt 0:01:21]} 43. Qb3 {[%emt 0:00:30]} Re1 {[%emt 0:00:00]} 44. Qf3 {[%emt 0:00:00]} Rxf1+ {[%emt 0:00:25]} 45. Kxf1 {[%emt 0:01:00]} Qe5 {[%emt 0:00:32]} 46. Qe2 {[%emt 0:00:00]} Qd4 {[%emt 0:01:03]} 47. Rf7 {[%emt 0:00:00]} g6 {[%emt 0:00:00]} 48. Rc7 {[%emt 0:00:00]} Bd6 {[%emt 0:00:28]} 49. Rd7 {[%emt 0:00:00]} Qa1+ {[%emt 0:00:30]} 50. Kg2 {[%emt 0:00:00]} 1-0

[Event "Chinese Championship-B Women 2024"]
[Site "Liaocheng"]
[Date "2024.04.24"]
[Round "5.10"]
[White "Hu, Yu A."]
[Black "Cao, Jiahui"]
[Result "1-0"]
[WhiteElo "2148"]
[BlackElo "1685"]
[PlyCount "41"]
[EventDate "2024.04.24"]
[EventType "swiss"]
[EventCountry "CHN"]
[TimeControl "5400+30"]

1. d4 {[%emt 0:00:05]} Nf6 {[%emt 0:00:29]} 2. Nf3 {[%emt 0:00:33]} e6 {[%emt 1:31:01]} 3. g3 {[%emt 1:31:22]} d5 {[%emt 0:00:30]} 4. Bg2 {[%emt 0:00:30]} Be7 {[%emt 0:00:30]} 5. c4 {[%emt 0:00:30]} O-O {[%emt 0:00:00]} 6. O-O {[%emt 0:00:00]} b6 {[%emt 0:00:00]} 7. cxd5 {[%emt 0:00:00]} exd5 {[%emt 0:00:00]} 8. Nc3 {[%emt 0:01:30]} Bb7 {[%emt 0:02:00]} 9. Ne5 {[%emt 0:00:30]} Na6 {[%emt 0:00:30]} 10. Bf4 {[%emt 0:00:30]} c5 {[%emt 0:00:30]} 11. Rc1 {[%emt 0:00:30]} Nc7 {[%emt 0:00:30]} 12. dxc5 {[%emt 0:00:30]} Bxc5 {[%emt 0:00:30]} 13. Nf3 {[%emt 0:00:30]} Ne6 {[%emt 0:00:30]} 14. Be5 {[%emt 0:00:30]} Ne4 {[%emt 0:00:30]} 15. e3 {[%emt 0:00:30]} Nxc3 {[%emt 0:00:30]} 16. Bxc3 {[%emt 0:00:30]} Qe7 {[%emt 0:00:30]} 17. Qd2 {[%emt 0:00:30]} Rfd8 {[%emt 0:00:30]} 18. Rfd1 {[%emt 0:00:00]} a5 19. h4 {[%emt 0:01:00]} Rd6 {[%emt 0:01:00]} 20. Nd4 {[%emt 0:00:30]} Bxd4 {[%emt 0:00:00]} 21. Bxd4 {[%emt 0:00:00]} 1-0

[Event "Chinese Championship-B Women 2024"]
[Site "Liaocheng"]
[Date "2024.04.24"]
[Round "5.11"]
[White "Ren, Xiaoyi"]
[Black "Pian, Junyao"]
[Result "1-0"]
[WhiteElo "2075"]
[BlackElo "1717"]
[PlyCount "55"]
[EventDate "2024.04.24"]
[EventType "swiss"]
[EventCountry "CHN"]
[TimeControl "5400+30"]

1. Nf3 {[%emt 0:07:52]} Nf6 {[%emt 0:00:13]} 2. d4 {[%emt 0:00:10]} d5 {[%emt 0:00:13]} 3. c4 {[%emt 0:00:04]} c6 {[%emt 0:00:13]} 4. e3 {[%emt 0:00:28]} e6 {[%emt 0:00:21]} 5. b3 {[%emt 0:00:41]} Nbd7 {[%emt 0:01:49]} 6. Bb2 {[%emt 0:01:20]} Bd6 {[%emt 0:03:23]} 7. Be2 {[%emt 0:00:31]} Ne4 {[%emt 0:03:49]} 8. O-O {[%emt 0:00:46]} O-O {[%emt 0:01:38]} 9. Nbd2 {[%emt 0:00:17]} Nxd2 {[%emt 0:06:06]} 10. Qxd2 {[%emt 0:00:09]} Qf6 {[%emt 0:02:50]} 11. Rad1 {[%emt 0:01:48]} Qh6 {[%emt 0:04:56]} 12. Ne5 {[%emt 0:06:17]} f5 {[%emt 0:04:11]} 13. f4 {[%emt 0:01:06]} Nf6 {[%emt 0:02:34]} 14. Rf3 {[%emt 0:02:40]} Bxe5 {[%emt 0:02:49]} 15. dxe5 {[%emt 0:01:20]} Ne4 {[%emt 0:00:44]} 16. Qe1 {[%emt 0:02:37]} Qg6 {[%emt 0:03:09]} 17. Ba3 {[%emt 0:03:08]} Rd8 {[%emt 0:03:34]} 18. Rh3 {[%emt 0:00:50]} Qe8 {[%emt 0:03:27]} 19. Qh4 {[%emt 0:02:55]} h6 {[%emt 0:00:27]} 20. Bh5 {[%emt 0:07:11]} Qd7 {[%emt 0:00:10]} 21. Bg6 {[%emt 0:00:54]} c5 {[%emt 0:10:03]} 22. Bxf5 {[%emt 0:03:20]} g5 {[%emt 0:11:38]} 23. Qxh6 {[%emt 0:01:09]} exf5 {[%emt 0:03:00]} 24. Rxd5 {[%emt 0:00:14]} Qxd5 {[%emt 0:02:16]} 25. cxd5 {[%emt 0:00:15]} Rxd5 {[%emt 0:01:02]} 26. Qg6+ {[%emt 0:00:39]} Kf8 {[%emt 0:00:14]} 27. Rh8+ {[%emt 0:00:04]} Ke7 {[%emt 0:00:06]} 28. Qe8# {[%emt 0:00:09]} 1-0

[Event "Chinese Championship-B Women 2024"]
[Site "Liaocheng"]
[Date "2024.04.24"]
[Round "5.12"]
[White "Xu, Mingwei"]
[Black "Yu, Xilei"]
[Result "0-1"]
[WhiteElo "2037"]
[BlackElo "1676"]
[PlyCount "106"]
[EventDate "2024.04.24"]
[EventType "swiss"]
[EventCountry "CHN"]
[TimeControl "5400+30"]

1. e4 {[%emt 0:04:01]} c5 {[%emt 0:00:05]} 2. Nf3 {[%emt 0:00:42]} Nc6 {[%emt 0:00:06]} 3. Bb5 {[%emt 0:00:05]} g6 4. O-O {[%emt 0:00:37]} Bg7 {[%emt 0:00:11]} 5. c3 {[%emt 0:00:30]} Nf6 {[%emt 0:00:42]} 6. e5 {[%emt 0:10:47]} Nd5 {[%emt 0:00:17]} 7. d4 {[%emt 0:01:40]} cxd4 {[%emt 0:00:08]} 8. cxd4 {[%emt 0:00:05]} O-O {[%emt 0:00:34]} 9. Nc3 {[%emt 0:00:53]} Nc7 {[%emt 0:00:22]} 10. Be2 {[%emt 0:07:05]} d6 {[%emt 0:02:01]} 11. Bf4 {[%emt 0:03:28]} d5 {[%emt 0:00:28]} 12. Qd2 {[%emt 0:01:09]} Bg4 {[%emt 0:00:47]} 13. h3 {[%emt 0:01:01]} Bxf3 {[%emt 0:00:10]} 14. Bxf3 {[%emt 0:00:06]} e6 {[%emt 0:01:29]} 15. Rac1 {[%emt 0:02:40]} Rc8 {[%emt 0:04:38]} 16. Ne2 {[%emt 0:10:44]} Na8 {[%emt 0:01:08]} 17. h4 {[%emt 0:04:26]} Qa5 {[%emt 0:01:53]} 18. Nc3 {[%emt 0:02:15]} Qb4 {[%emt 0:01:24]} 19. Rfd1 {[%emt 0:02:37]} Nb6 {[%emt 0:01:11]} 20. b3 {[%emt 0:03:45]} Rc7 {[%emt 0:01:12]} 21. Qd3 {[%emt 0:07:45]} a6 {[%emt 0:01:24]} 22. Ne2 {[%emt 0:04:30]} Rfc8 {[%emt 0:01:17]} 23. Bg5 {[%emt 0:05:49]} Qa3 {[%emt 0:01:24]} 24. Qb1 {[%emt 0:02:23]} Nb4 {[%emt 0:07:11]} 25. Rxc7 {[%emt 0:00:40]} Rxc7 {[%emt 0:00:04]} 26. Bd8 {[%emt 0:03:37]} Rc6 {[%emt 0:00:06]} 27. Rc1 {[%emt 0:00:55]} Nc8 {[%emt 0:02:37]} 28. Rxc6 {[%emt 0:00:54]} Nxc6 {[%emt 0:01:27]} 29. Bg5 {[%emt 0:00:20]} N8a7 {[%emt 0:01:14]} 30. Bc1 {[%emt 0:00:14]} Qb4 {[%emt 0:00:21]} 31. Bb2 {[%emt 0:00:46]} Nb5 {[%emt 0:00:12]} 32. Qd1 {[%emt 0:01:19]} Bh6 {[%emt 0:02:26]} 33. Qd3 {[%emt 0:03:35]} Qe1+ {[%emt 0:00:21]} 34. Kh2 {[%emt 0:00:59]} Qxf2 {[%emt 0:00:12]} 35. Kh3 {[%emt 0:00:32]} Be3 {[%emt 0:01:42]} 36. a4 {[%emt 0:01:14]} Nbxd4 {[%emt 0:00:45]} 37. Bxd4 {[%emt 0:01:11]} Bxd4 {[%emt 0:00:14]} 38. Nxd4 {[%emt 0:00:35]} Qxd4 {[%emt 0:00:15]} 39. Qxd4 {[%emt 0:00:44]} Nxd4 {[%emt 0:00:06]} 40. Bd1 {[%emt 0:00:21]} Nc6 {[%emt 0:00:08]} 41. Kg4 {[%emt 0:00:11]} Nxe5+ {[%emt 0:00:05]} 42. Kf4 {[%emt 0:00:08]} Nc6 {[%emt 0:00:08]} 43. h5 {[%emt 0:01:22]} Kg7 {[%emt 0:00:49]} 44. hxg6 {[%emt 0:00:48]} hxg6 {[%emt 0:00:06]} 45. Kg5 {[%emt 0:00:25]} f6+ {[%emt 0:00:09]} 46. Kf4 {[%emt 0:00:09]} g5+ {[%emt 0:00:05]} 47. Ke3 {[%emt 0:00:07]} Kg6 {[%emt 0:00:05]} 48. g4 {[%emt 0:00:27]} f5 {[%emt 0:00:10]} 49. gxf5+ {[%emt 0:01:07]} Kxf5 {[%emt 0:00:05]} 50. Bc2+ {[%emt 0:00:47]} Ke5 {[%emt 0:00:05]} 51. Bd1 {[%emt 0:00:04]} d4+ {[%emt 0:00:07]} 52. Kd3 {[%emt 0:00:07]} Kd5 {[%emt 0:00:24]} 53. Bg4 {[%emt 0:00:30]} Ne5+ {[%emt 0:00:09]} 0-1

[Event "Chinese Championship-B Women 2024"]
[Site "Liaocheng"]
[Date "2024.04.24"]
[Round "5.13"]
[White "Du, Yuxin"]
[Black "Zhou, Lanqier"]
[Result "1/2-1/2"]
[WhiteElo "1960"]
[BlackElo "1654"]
[PlyCount "80"]
[EventDate "2024.04.24"]
[EventType "swiss"]
[EventCountry "CHN"]
[TimeControl "5400+30"]

1. e4 {[%emt 1:31:00]} e5 {[%emt 0:00:05]} 2. Nf3 {[%emt 0:00:00]} Nc6 {[%emt 0:00:03]} 3. Bb5 {[%emt 0:00:00]} Nf6 {[%emt 0:00:06]} 4. O-O {[%emt 0:00:00]} Nxe4 {[%emt 0:00:14]} 5. d4 {[%emt 0:00:00]} Nd6 {[%emt 0:00:09]} 6. Bxc6 {[%emt 0:00:00]} dxc6 {[%emt 0:00:44]} 7. dxe5 {[%emt 0:00:00]} Nf5 {[%emt 0:01:06]} 8. Qxd8+ {[%emt 0:00:00]} Kxd8 9. Nc3 {[%emt 0:00:00]} Ne7 {[%emt 0:09:10]} 10. Be3 {[%emt 0:00:00]} Ke8 {[%emt 0:05:28]} 11. h3 {[%emt 0:00:00]} Nd5 {[%emt 0:02:13]} 12. Bd2 {[%emt 0:00:00]} Nxc3 {[%emt 0:17:34]} 13. Bxc3 {[%emt 0:00:00]} Bc5 {[%emt 0:03:32]} 14. Bd4 {[%emt 0:06:30]} Be7 {[%emt 0:03:35]} 15. Be3 {[%emt 0:00:00]} c5 {[%emt 0:09:06]} 16. Rfd1 {[%emt 0:00:00]} Bf5 {[%emt 0:02:16]} 17. Ne1 {[%emt 0:00:00]} h5 {[%emt 0:09:53]} 18. Rd2 {[%emt 0:00:00]} Rd8 {[%emt 0:02:40]} 19. Rad1 {[%emt 0:00:00]} Rxd2 {[%emt 0:05:54]} 20. Rxd2 {[%emt 0:00:00]} g5 {[%emt 0:03:21]} 21. f3 {[%emt 0:00:00]} g4 {[%emt 0:03:26]} 22. hxg4 {[%emt 0:00:00]} hxg4 {[%emt 0:00:07]} 23. fxg4 {[%emt 0:00:00]} Bxg4 {[%emt 0:00:05]} 24. Nd3 {[%emt 0:00:00]} b6 {[%emt 0:04:58]} 25. c4 {[%emt 0:00:00]} Rh5 {[%emt 0:04:56]} 26. Bf4 {[%emt 0:00:00]} Bg5 {[%emt 0:03:49]} 27. g3 {[%emt 0:00:00]} Bf3 {[%emt 0:02:23]} 28. Kf2 {[%emt 0:00:00]} Bxf4 {[%emt 0:00:21]} 29. gxf4 {[%emt 0:01:20]} Rh2+ {[%emt 0:01:04]} 30. Ke3 {[%emt 0:00:06]} Rxd2 {[%emt 0:04:54]} 31. Kxd2 {[%emt 0:00:05]} Ke7 {[%emt 0:00:50]} 32. Ke3 {[%emt 0:00:34]} Bg4 {[%emt 0:00:44]} 33. Nf2 {[%emt 0:01:43]} Bf5 {[%emt 0:00:13]} 34. Ne4 {[%emt 0:00:16]} a6 {[%emt 0:01:51]} 35. Nc3 {[%emt 0:00:25]} Bg6 {[%emt 0:00:30]} 36. Nd5+ {[%emt 0:01:50]} Kd7 {[%emt 0:00:09]} 37. Nf6+ {[%emt 0:00:45]} Ke6 {[%emt 0:00:12]} 38. Nd5 {[%emt 0:00:30]} Kd7 {[%emt 0:00:07]} 39. Nf6+ {[%emt 0:00:38]} Ke6 {[%emt 0:00:08]} 40. Nd5 {[%emt 0:00:06]} Kd7 {[%emt 0:00:04]} 1/2-1/2

[Event "Chinese Championship-B Women 2024"]
[Site "Liaocheng"]
[Date "2024.04.24"]
[Round "5.14"]
[White "Men, Jiayi"]
[Black "Meng, Wuyang"]
[Result "1-0"]
[WhiteElo "1845"]
[BlackElo "1652"]
[PlyCount "89"]
[EventDate "2024.04.24"]
[EventType "swiss"]
[EventCountry "CHN"]
[TimeControl "5400+30"]

1. Nf3 {[%emt 0:00:16]} d5 {[%emt 0:00:12]} 2. g3 {[%emt 0:00:32]} Nf6 {[%emt 0:00:14]} 3. Bg2 {[%emt 0:00:20]} c6 {[%emt 0:00:47]} 4. d4 {[%emt 0:00:38]} h6 {[%emt 0:00:46]} 5. O-O {[%emt 0:00:34]} Bf5 {[%emt 0:00:57]} 6. c4 {[%emt 0:00:35]} e6 {[%emt 0:00:23]} 7. Nc3 {[%emt 0:00:47]} Bd6 {[%emt 0:01:02]} 8. Nd2 {[%emt 0:02:30]} O-O {[%emt 0:03:49]} 9. e4 {[%emt 0:00:47]} dxe4 {[%emt 0:00:17]} 10. Ndxe4 {[%emt 0:00:11]} Bxe4 {[%emt 0:02:24]} 11. Nxe4 {[%emt 0:00:40]} e5 {[%emt 0:03:58]} 12. Nxd6 {[%emt 0:03:13]} Qxd6 {[%emt 0:00:08]} 13. dxe5 {[%emt 0:00:33]} Qxe5 {[%emt 0:01:07]} 14. Qb3 {[%emt 0:01:03]} Qc7 {[%emt 0:05:15]} 15. Bf4 {[%emt 0:02:14]} Qc8 {[%emt 0:03:27]} 16. Rad1 {[%emt 0:03:37]} Na6 {[%emt 0:04:04]} 17. Qc3 {[%emt 0:02:44]} Qf5 {[%emt 0:04:01]} 18. b4 {[%emt 0:05:52]} Rad8 {[%emt 0:02:23]} 19. Be3 {[%emt 0:23:13]} Rxd1 {[%emt 0:08:01]} 20. Rxd1 {[%emt 0:00:01]} Qh5 {[%emt 0:03:54]} 21. f3 {[%emt 0:03:29]} b6 {[%emt 0:01:08]} 22. Qa3 {[%emt 0:04:19]} Qe5 {[%emt 0:08:41]} 23. Bf2 {[%emt 0:01:18]} Qe2 {[%emt 0:01:06]} 24. Re1 {[%emt 0:02:03]} Qxc4 {[%emt 0:00:37]} 25. Bf1 {[%emt 0:00:32]} Qxb4 {[%emt 0:01:36]} 26. Qxa6 {[%emt 0:00:09]} Nd5 {[%emt 0:05:06]} 27. Qxa7 {[%emt 0:00:59]} Qc3 {[%emt 0:01:45]} 28. Qd7 {[%emt 0:02:57]} Nb4 {[%emt 0:03:15]} 29. Re8 {[%emt 0:02:22]} Qf6 {[%emt 0:06:52]} 30. Rxf8+ {[%emt 0:07:47]} Kxf8 {[%emt 0:00:07]} 31. Bd4 {[%emt 0:00:33]} Qg5 {[%emt 0:00:55]} 32. f4 {[%emt 0:00:48]} Qd5 {[%emt 0:00:23]} 33. Qxd5 {[%emt 0:00:15]} Nxd5 {[%emt 0:00:13]} 34. Bc4 {[%emt 0:00:17]} b5 {[%emt 0:01:21]} 35. Bxd5 {[%emt 0:00:09]} cxd5 {[%emt 0:00:09]} 36. Kf2 {[%emt 0:00:07]} g6 {[%emt 0:00:30]} 37. Bc5+ {[%emt 0:00:27]} Ke8 {[%emt 0:00:19]} 38. Ke3 {[%emt 0:00:04]} Kd7 {[%emt 0:00:09]} 39. Kd4 {[%emt 0:00:43]} Ke6 {[%emt 0:00:29]} 40. Bf8 {[%emt 0:01:48]} h5 {[%emt 0:00:13]} 41. Kc5 {[%emt 0:01:56]} Kf5 {[%emt 0:01:02]} 42. Kxb5 {[%emt 0:01:27]} Ke4 {[%emt 0:00:21]} 43. a4 {[%emt 0:00:12]} d4 {[%emt 0:00:09]} 44. a5 {[%emt 0:00:09]} d3 {[%emt 0:00:27]} 45. Bb4 {[%emt 0:00:04]} 1-0